fUST/lending_fUST_20250408
["ID","MTS","AMOUNT","RATE_DAILY","PERIOD"]
[357494915,1744087851119,-1043.53,0.00021906,2]
[357494917,1744087851131,-681.08,0.00021906,2]
[357494919,1744087851141,-734.76,0.00021906,2]
[357494921,1744087851151,-500.0,0.00021907,2]
[357494923,1744087851161,-500.0,0.00021907,2]
[357494925,1744087851174,-500.0,0.00021907,2]
[357494927,1744087851184,-500.0,0.00021907,2]
[357494929,1744087851194,-500.0,0.00021907,2]
[357494931,1744087851203,-708.25,0.00021907,2]
[357494933,1744087851214,-857.15,0.00021907,2]
[357494935,1744087851224,-500.0,0.00021907,2]
[357494937,1744087851234,-500.0,0.00021907,2]
[357494939,1744087851244,-915.7,0.00021907,2]
[357494941,1744087851254,-500.0,0.00021907,2]
[357494943,1744087851264,-503.89011713,0.00021907,2]
[357494945,1744087851273,-490.59088011,0.00021907,2]
[357494947,1744087851283,-500.0,0.00021907,2]
[357494948,1744087851292,-500.0,0.00021907,2]
[357494950,1744087851302,-1081.61,0.00021907,2]
[357494952,1744087851312,-500.0,0.00021907,2]
[357494954,1744087851322,-882.13,0.00021907,2]
[357494955,1744087851331,-836.88,0.00021907,2]
[357494956,1744087851340,-553.71,0.00021907,2]
[357494957,1744087851350,-500.0,0.00021907,2]
[357494958,1744087851360,-500.0,0.00021907,2]
[357494959,1744087851369,-870.38,0.00021907,2]
[357494960,1744087851379,-966.82,0.00021907,2]
[357494961,1744087851390,-500.0,0.00021907,2]
[357494962,1744087851399,-958.48,0.00021907,2]
[357494963,1744087851410,-646.61170571,0.00021907,2]
[357494964,1744087851420,-3050.94,0.00021907,2]
[357494965,1744087851430,-500.0,0.00021907,2]
[357494966,1744087851440,-399.99447154,0.00021907,2]
[357494967,1744087851451,-500.0,0.00021907,2]
[357494968,1744087851461,-500.0,0.00021907,2]
[357494969,1744087851471,-500.0,0.00021907,2]
[357494970,1744087851481,-533.18,0.00021907,2]
[357494971,1744087851491,-500.0,0.00021907,2]
[357494972,1744087851510,-565.11567876,0.00021907,2]
[357494973,1744087851523,-844.73,0.00021907,2]
[357494974,1744087851533,-1629.74,0.00021907,2]
[357494975,1744087851544,-500.0,0.00021907,2]
[357494976,1744087851555,-537.34,0.00021907,2]
[357494977,1744087851565,-900.42,0.00021907,2]
[357494978,1744087851575,-1681.18573804,0.00021907,2]
[357495008,1744087851959,-34.02299803,0.00021907,2]
[357495038,1744087852614,-224.91477807,0.00019987,2]
[357495039,1744087852712,-500.0,0.00019986,2]
[357495040,1744087852722,-275.08522193,0.00019987,2]
[357495041,1744087852732,-500.0,0.00019988,2]
[357495042,1744087852742,-475.11,0.00020261,2]
[357495043,1744087852752,-407.67,0.00020261,2]
[357495044,1744087852762,-504.32029485,0.00020262,2]
[357495045,1744087852772,-151.0,0.00020811,2]
[357495046,1744087852782,-151.0,0.00021085,2]
[357495047,1744087852793,-199.706169,0.00021631,2]
[357495048,1744087852803,-216.86468293,0.00021907,2]
[357495049,1744087852813,-1932.073419,0.00021907,2]
[357495050,1744087852823,-500.0,0.00021907,2]
[357495051,1744087852833,-151.0,0.00021907,2]
[357495052,1744087852843,-151.0,0.00021907,2]
[357495053,1744087852852,-200.0,0.00021917,2]
[357495054,1744087852862,-374.1830412,0.00021918,2]
[357495055,1744087852874,-207.4,0.00021923,2]
[357495056,1744087852891,-190.53752278,0.00022036,2]
[357495057,1744087852904,-500.0,0.00022036,2]
[357495058,1744087852921,-500.0,0.00022036,2]
[357495059,1744087852936,-552.44282136,0.00022036,2]
[357495060,1744087852947,-500.0,0.00022036,2]
[357495061,1744087852959,-500.0,0.00022036,2]
[357495062,1744087852971,-469.628847,0.00022036,7]
[357495063,1744087852982,-469.628847,0.00022036,7]
[357495064,1744087852992,-235.644486,0.00022036,7]
[357495065,1744087853003,-235.644486,0.00022036,7]
[357495066,1744087853014,-153.104009,0.00022036,7]
[357495067,1744087853025,-153.104009,0.00022036,7]
[357495068,1744087853036,-151.0,0.00022036,7]
[357495069,1744087853047,-171.722424,0.00022036,2]
[357495070,1744087853056,-171.722424,0.00022036,2]
[357495071,1744087853068,-541.8218066,0.00022037,2]
[357495072,1744087853078,-174.643038,0.00022037,7]
[357495073,1744087853092,-500.0,0.00022037,2]
[357495074,1744087853102,-785.79,0.00022037,2]
[357495075,1744087853112,-500.0,0.00022037,2]
[357495076,1744087853123,-500.0,0.00022178,2]
[357495077,1744087853137,-3144.01,0.00022178,2]
[357495078,1744087853147,-1236.86,0.00022178,2]
[357495079,1744087853158,-500.0,0.00022179,2]
[357495080,1744087853170,-1149.36,0.00022179,2]
[357495081,1744087853180,-500.0,0.00022179,2]
[357495082,1744087853190,-3874.23,0.00022179,2]
[357495083,1744087853200,-1064.06,0.00022179,2]
[357495084,1744087853210,-500.0,0.00022179,2]
[357495085,1744087853219,-1472.0,0.00022179,2]
[357495086,1744087853230,-1466.85,0.00022179,2]
[357495087,1744087853242,-892.51,0.00022179,2]
[357495088,1744087853252,-830.18,0.00022179,2]
[357495089,1744087853262,-2153.98,0.00022179,2]
[357495090,1744087853271,-199.4038537,0.00022179,2]
[357495091,1744087853281,-500.0,0.00022179,2]
[357495092,1744087853291,-534.8,0.00022179,2]
[357495093,1744087853302,-1442.99,0.00022179,2]
[357495094,1744087853312,-500.0,0.00022179,2]
[357495095,1744087853321,-1365.4667393,0.00022179,2]
[357495096,1744087853334,-360.2532607,0.00022179,2]
[357495097,1744087853344,-500.0,0.0002218,2]
[357495098,1744087853354,-503.38,0.0002218,2]
[357495099,1744087853364,-500.0,0.0002218,2]
[357495100,1744087853374,-223.31206031,0.0002218,2]
[357495101,1744087853744,-224.91477807,0.00019987,2]
[357495102,1744087858573,-261.69449216,0.00019986,2]
[357495103,1744087886680,-360.471519,0.00019541,2]
[357495104,1744087994315,-543.8844498,0.00019125,2]
[357495105,1744088093449,-208.5100972,0.00019122,2]
[357495106,1744088198229,631.51,0.00025,120]
[357495109,1744088339243,-273.95575854,0.00019056,2]
[357495110,1744088360296,-187.87197361,0.00019056,2]
[357495111,1744088389268,-3.99211205,0.00019056,2]
[357495112,1744088389292,-296.00788795,0.00019877,2]
[357495113,1744088569944,194.3686084,0.00025,120]
[357495114,1744088815106,-159.0,0.00019,2]
[357495115,1744088815129,-291.0,0.00019877,2]
[357495187,1744089037835,-305.7763476,0.00019877,2]
[357495188,1744089037846,-151.49184116,0.00019887,2]
[357495189,1744089037856,-369.48,0.00019975,3]
[357495190,1744089037866,-151.0,0.00019975,2]
[357495191,1744089037876,-200.0,0.00019975,2]
[357495192,1744089037886,-300.0,0.00019982,2]
[357495193,1744089037896,-500.0,0.00019983,2]
[357495194,1744089037906,-1909.92408421,0.00019983,2]
[357495195,1744089037918,-1396.84591579,0.00019983,2]
[357495196,1744089037928,-1076.62,0.00019983,2]
[357495197,1744089037938,-500.0,0.00019983,2]
[357495198,1744089037948,-500.0,0.00019983,2]
[357495199,1744089037958,-500.0,0.00019983,2]
[357495200,1744089037967,-500.0,0.00019983,2]
[357495201,1744089037977,-500.0,0.00019983,2]
[357495203,1744089037987,-500.0,0.00019983,2]
[357495204,1744089037996,-187.87197361,0.00019983,2]
[357495205,1744089038006,-500.0,0.00019983,2]
[357495206,1744089038015,-500.0,0.00019983,2]
[357495207,1744089038026,-500.0,0.00019983,2]
[357495208,1744089038036,-500.0,0.00019983,2]
[357495209,1744089038046,-410.22130755,0.00019983,2]
[357495210,1744089038055,-500.0,0.00019983,2]
[357495211,1744089038065,-500.0,0.00019983,2]
[357495212,1744089038075,-500.0,0.00019983,2]
[357495213,1744089038085,-335.0,0.00019983,2]
[357495214,1744089038095,-500.0,0.00019983,2]
[357495215,1744089038105,-500.0,0.00019983,2]
[357495216,1744089038115,-500.0,0.00019983,2]
[357495217,1744089038125,-500.0,0.00019983,2]
[357495218,1744089038135,-500.0,0.00019983,2]
[357495219,1744089038145,-525.11855534,0.00019983,2]
[357495220,1744089038155,-500.0,0.00019983,2]
[357495221,1744089038164,-500.0,0.00019984,2]
[357495222,1744089038174,-500.0,0.00019984,2]
[357495223,1744089038184,-871.92,0.00019984,2]
[357495224,1744089038194,-500.0,0.00019984,2]
[357495225,1744089038204,-500.0,0.00019984,2]
[357495226,1744089038214,-1067.01,0.00019984,2]
[357495227,1744089038224,-500.0,0.00019984,2]
[357495228,1744089038235,-500.0,0.00019984,2]
[357495229,1744089038245,-3362.4,0.00019984,2]
[357495230,1744089038255,-500.0,0.00019984,2]
[357495231,1744089038265,-500.0,0.00019984,2]
[357495232,1744089038276,-500.0,0.00019984,2]
[357495233,1744089038287,-1275.39,0.00019984,2]
[357495234,1744089038296,-1270.81,0.00019984,2]
[357495235,1744089038306,-747.45,0.00019984,2]
[357495236,1744089038316,-1851.44,0.00019984,2]
[357495237,1744089038326,-500.0,0.00019984,2]
[357495238,1744089038336,-716.97,0.00019984,2]
[357495239,1744089038346,-500.0,0.00019984,2]
[357495240,1744089038356,-500.0,0.00019984,2]
[357495241,1744089038366,-500.0,0.00019984,2]
[357495242,1744089038376,-500.0,0.00019984,2]
[357495243,1744089038386,-1266.24,0.00019984,2]
[357495244,1744089038396,-500.0,0.00019984,2]
[357495245,1744089038407,-1102.77,0.00019984,2]
[357495246,1744089038417,-500.0,0.00019984,2]
[357495247,1744089038428,-500.0,0.00019984,2]
[357495248,1744089038440,-500.0,0.00019984,2]
[357495249,1744089038450,-500.0,0.00019984,2]
[357495250,1744089038460,-794.99,0.00019984,2]
[357495251,1744089038472,-500.0,0.00019984,2]
[357495252,1744089038482,-504.80099256,0.00019984,2]
[357495253,1744089038491,-500.0,0.00019984,2]
[357495254,1744089038501,-500.0,0.00019984,2]
[357495255,1744089038513,-1509.7,0.00019984,2]
[357495256,1744089038524,-1897.89,0.00019984,2]
[357495257,1744089038534,-500.0,0.00019985,2]
[357495258,1744089038543,-500.0,0.00019985,2]
[357495259,1744089038553,-507.2708297,0.00019985,2]
[357495260,1744089038563,-500.0,0.00019985,2]
[357495261,1744089038574,-521.50771916,0.00019985,2]
[357495262,1744089038584,-558.89706222,0.00019985,2]
[357495263,1744089038593,-500.0,0.00019985,2]
[357495264,1744089038603,-500.0,0.00019985,2]
[357495265,1744089038613,-500.0,0.00019985,2]
[357495266,1744089038623,-500.0,0.00019985,2]
[357495267,1744089038633,-500.0,0.00019985,2]
[357495268,1744089038643,-500.0,0.00019985,2]
[357495269,1744089038654,-500.0,0.00019985,2]
[357495270,1744089038664,-500.0,0.00019985,2]
[357495271,1744089038674,-500.0,0.00019985,2]
[357495272,1744089038684,-558.00153522,0.00019985,2]
[357495273,1744089038694,-500.0,0.00019985,2]
[357495274,1744089038704,-500.0,0.00019985,2]
[357495275,1744089038713,-500.0,0.00019985,2]
[357495276,1744089038723,-500.0,0.00019985,2]
[357495277,1744089038733,-513.15674946,0.00019985,2]
[357495278,1744089038743,-500.0,0.00019985,2]
[357495279,1744089038753,-500.0,0.00019985,2]
[357495280,1744089038763,-500.0,0.00019985,2]
[357495281,1744089038773,-500.0,0.00019985,2]
[357495282,1744089038783,-500.0,0.00019985,2]
[357495283,1744089038793,-506.65883047,0.00019985,2]
[357495284,1744089038802,-500.0,0.00019985,2]
[357495285,1744089038812,-500.0,0.00019985,2]
[357495286,1744089038822,-500.0,0.00019985,2]
[357495287,1744089038832,-500.0,0.00019985,2]
[357495288,1744089038841,-500.0,0.00019985,2]
[357495289,1744089038851,-518.52874879,0.00019985,2]
[357495290,1744089038861,-500.0,0.00019985,2]
[357495291,1744089038870,-500.0,0.00019985,2]
[357495292,1744089038880,-580.85534083,0.00019985,2]
[357495293,1744089038890,-500.0,0.00019985,2]
[357495294,1744089038899,-500.0,0.00019985,2]
[357495295,1744089038909,-500.0,0.00019985,2]
[357495296,1744089038919,-500.0,0.00019985,2]
[357495297,1744089038929,-500.0,0.00019985,2]
[357495298,1744089038939,-500.0,0.00019985,2]
[357495299,1744089038949,-500.0,0.00019985,2]
[357495300,1744089038959,-500.0,0.00019985,2]
[357495301,1744089038969,-500.0,0.00019985,2]
[357495302,1744089038979,-263.81492044,0.00019985,2]
[357495303,1744089038989,-500.0,0.00019985,2]
[357495304,1744089038999,-505.90642205,0.00019985,2]
[357495305,1744089039009,-500.0,0.00019985,2]
[357495306,1744089039019,-230.11767595,0.00019985,2]
[357495307,1744089039029,-510.20058722,0.00019985,2]
[357495308,1744089039039,-500.0,0.00019985,2]
[357495309,1744089039049,-603.69726671,0.00019985,2]
[357495310,1744089039070,-500.0,0.00019985,2]
[357495311,1744089039082,-500.0,0.00019985,2]
[357495312,1744089039092,-513.56551307,0.00019985,2]
[357495313,1744089039102,-500.0,0.00019985,2]
[357495314,1744089039113,-500.0,0.00019985,2]
[357495315,1744089039123,-500.0,0.00019985,2]
[357495316,1744089039134,-200.0,0.00019985,2]
[357495317,1744089039144,-500.0,0.00019985,2]
[357495318,1744089039154,-500.0,0.00019985,2]
[357495319,1744089039164,-533.68374497,0.00019985,2]
[357495320,1744089039175,-500.0,0.00019985,2]
[357495321,1744089039185,-842.38,0.00019985,2]
[357495322,1744089039196,-500.0,0.00019985,2]
[357495323,1744089039207,-511.0461596,0.00019985,2]
[357495324,1744089039217,-500.0,0.00019985,2]
[357495325,1744089039227,-500.0,0.00019985,2]
[357495326,1744089039237,-500.0,0.00019985,2]
[357495327,1744089039248,-500.0,0.00019985,2]
[357495328,1744089039259,-500.0,0.00019985,2]
[357495329,1744089039269,-500.0,0.00019985,2]
[357495330,1744089039279,-500.0,0.00019985,2]
[357495331,1744089039289,-500.0,0.00019985,2]
[357495332,1744089039299,-596.46811413,0.00019985,2]
[357495333,1744089039309,-500.0,0.00019985,2]
[357495334,1744089039319,-500.0,0.00019985,2]
[357495335,1744089039330,-466.33539202,0.00019985,2]
[357495336,1744089039340,-513.28448289,0.00019985,2]
[357495337,1744089039350,-500.0,0.00019985,2]
[357495338,1744089039360,-500.0,0.00019985,2]
[357495339,1744089039370,-615.44,0.00019985,2]
[357495340,1744089039380,-500.0,0.00019985,2]
[357495341,1744089039391,-336.04144617,0.00019985,2]
[357495342,1744089039401,-500.0,0.00019985,2]
[357495343,1744089039411,-590.23420579,0.00019985,2]
[357495344,1744089039421,-500.0,0.00019985,2]
[357495345,1744089039433,-500.0,0.00019985,2]
[357495346,1744089039444,-500.0,0.00019985,2]
[357495347,1744089039454,-500.0,0.00019985,2]
[357495348,1744089039464,-500.0,0.00019985,2]
[357495349,1744089039475,-500.0,0.00019985,2]
[357495350,1744089039487,-500.0,0.00019985,2]
[357495351,1744089039497,-500.0,0.00019985,2]
[357495352,1744089039508,-500.0,0.00019985,2]
[357495353,1744089039520,-530.7804004,0.00019985,2]
[357495354,1744089039530,-500.0,0.00019985,2]
[357495355,1744089039540,-500.0,0.00019985,2]
[357495356,1744089039550,-614.02261486,0.00019985,2]
[357495357,1744089039560,-500.0,0.00019985,2]
[357495358,1744089039571,-500.0,0.00019985,2]
[357495359,1744089039581,-500.0,0.00019985,2]
[357495360,1744089039592,-561.65703785,0.00019985,2]
[357495361,1744089039602,-541.33666198,0.00019985,2]
[357495362,1744089039612,-500.0,0.00019985,2]
[357495363,1744089039622,-537.78885123,0.00019985,2]
[357495364,1744089039632,-528.05287515,0.00019985,2]
[357495365,1744089039642,-500.0,0.00019985,2]
[357495366,1744089039653,-500.0,0.00019985,2]
[357495367,1744089039663,-500.0,0.00019985,2]
[357495368,1744089039673,-500.0,0.00019985,2]
[357495369,1744089039683,-500.0,0.00019985,2]
[357495370,1744089039694,-500.0,0.00019985,2]
[357495371,1744089039704,-500.0,0.00019985,2]
[357495373,1744089039714,-511.06725876,0.00019985,2]
[357495375,1744089039724,-500.0,0.00019985,2]
[357495377,1744089039734,-518.66133913,0.00019985,2]
[357495379,1744089039744,-500.0,0.00019985,2]
[357495382,1744089039754,-512.94328565,0.00019985,2]
[357495383,1744089039764,-500.0,0.00019985,2]
[357495386,1744089039775,-500.0,0.00019985,2]
[357495388,1744089039784,-500.0,0.00019985,2]
[357495390,1744089039794,-500.0,0.00019985,2]
[357495392,1744089039804,-500.0,0.00019985,2]
[357495394,1744089039814,-500.0,0.00019985,2]
[357495396,1744089039824,-500.0,0.00019985,2]
[357495398,1744089039834,-500.0,0.00019985,2]
[357495400,1744089039844,-195.60621648,0.00019985,2]
[357495402,1744089039854,-500.0,0.00019985,2]
[357495404,1744089039864,-504.03480057,0.00019985,2]
[357495406,1744089039874,-500.0,0.00019985,2]
[357495408,1744089039884,-500.0,0.00019985,2]
[357495410,1744089039895,-542.04938019,0.00019985,2]
[357495412,1744089039904,-500.0,0.00019985,2]
[357495414,1744089039915,-500.0,0.00019985,2]
[357495417,1744089039925,-500.0,0.00019985,2]
[357495419,1744089039934,-509.08549307,0.00019985,2]
[357495421,1744089039948,-500.0,0.00019985,2]
[357495423,1744089039960,-500.0,0.00019985,2]
[357495425,1744089039970,-500.0,0.00019985,2]
[357495427,1744089039979,-501.1492375,0.00019985,2]
[357495429,1744089039989,-537.16944241,0.00019985,2]
[357495431,1744089039999,-501.43761634,0.00019985,2]
[357495433,1744089040008,-500.0,0.00019985,2]
[357495436,1744089040212,-500.0,0.00019985,2]
[357495437,1744089040223,-500.0,0.00019985,2]
[357495438,1744089040234,-510.18789629,0.00019985,2]
[357495439,1744089040244,-500.0,0.00019985,2]
[357495440,1744089040254,-511.16656439,0.00019985,2]
[357495441,1744089040265,-500.0,0.00019985,2]
[357495442,1744089040275,-500.0,0.00019985,2]
[357495443,1744089040285,-511.36985496,0.00019985,2]
[357495444,1744089040294,-500.0,0.00019985,2]
[357495445,1744089040304,-871.68,0.00019985,2]
[357495446,1744089040314,-500.0,0.00019985,2]
[357495447,1744089040324,-500.0,0.00019985,2]
[357495448,1744089040334,-779.37,0.00019985,2]
[357495449,1744089040344,-1498.88,0.00019985,2]
[357495450,1744089040354,-500.0,0.00019985,2]
[357495451,1744089040364,-525.02297407,0.00019985,2]
[357495452,1744089040374,-500.0,0.00019985,2]
[357495453,1744089040385,-500.0,0.00019985,2]
[357495454,1744089040394,-500.0,0.00019985,2]
[357495455,1744089040404,-503.59025526,0.00019985,2]
[357495456,1744089040414,-500.0,0.00019985,2]
[357495457,1744089040424,-537.21670392,0.00019985,2]
[357495458,1744089040438,-518.40042369,0.00019985,2]
[357495459,1744089040448,-914.47,0.00019985,2]
[357495460,1744089040459,-500.0,0.00019985,2]
[357495461,1744089040468,-166.2329334,0.00019985,2]
[357495462,1744089040479,-500.0,0.00019985,2]
[357495463,1744089040488,-500.0,0.00019985,2]
[357495464,1744089040498,-500.0,0.00019985,2]
[357495465,1744089040509,-500.0,0.00019985,2]
[357495466,1744089040519,-500.0,0.00019985,2]
[357495467,1744089040528,-1105.01,0.00019985,2]
[357495468,1744089040538,-500.0,0.00019985,2]
[357495469,1744089040548,-500.0,0.00019985,2]
[357495470,1744089040558,-500.0,0.00019985,2]
[357495471,1744089040568,-500.0,0.00019985,2]
[357495472,1744089040578,-500.0,0.00019985,2]
[357495473,1744089040588,-500.0,0.00019985,2]
[357495474,1744089040598,-500.0,0.00019985,2]
[357495475,1744089040608,-500.0,0.00019985,2]
[357495476,1744089040617,-500.0,0.00019985,2]
[357495477,1744089040627,-500.0,0.00019985,2]
[357495478,1744089040637,-500.0,0.00019985,2]
[357495479,1744089040647,-521.53164615,0.00019985,2]
[357495480,1744089040657,-500.0,0.00019985,2]
[357495481,1744089040666,-500.0,0.00019985,2]
[357495482,1744089040676,-500.0,0.00019985,2]
[357495483,1744089040686,-527.49827548,0.00019985,2]
[357495484,1744089040696,-500.0,0.00019985,2]
[357495485,1744089040705,-500.0,0.00019985,2]
[357495486,1744089040715,-509.91628984,0.00019985,2]
[357495487,1744089040725,-500.0,0.00019985,2]
[357495488,1744089040734,-500.0,0.00019985,2]
[357495489,1744089040744,-215.71051473,0.00019985,2]
[357495490,1744089040754,-508.00032894,0.00019985,2]
[357495491,1744089040763,-500.0,0.00019985,2]
[357495492,1744089040773,-500.0,0.00019985,2]
[357495493,1744089040783,-500.0,0.00019985,2]
[357495494,1744089040793,-506.00656185,0.00019985,2]
[357495495,1744089040802,-500.0,0.00019985,2]
[357495496,1744089040812,-500.0,0.00019985,2]
[357495497,1744089040821,-500.0,0.00019985,2]
[357495498,1744089040831,-510.63584113,0.00019985,2]
[357495499,1744089040840,-870.44,0.00019985,2]
[357495500,1744089040850,-500.0,0.00019985,2]
[357495501,1744089040860,-500.0,0.00019985,2]
[357495502,1744089040870,-2158.84,0.00019985,2]
[357495503,1744089040879,-500.0,0.00019985,2]
[357495504,1744089040889,-500.0,0.00019985,2]
[357495505,1744089040899,-500.0,0.00019985,2]
[357495506,1744089040909,-831.16,0.00019985,2]
[357495507,1744089040918,-500.0,0.00019985,2]
[357495508,1744089040928,-500.0,0.00019985,2]
[357495509,1744089040938,-500.0,0.00019985,2]
[357495510,1744089040949,-500.0,0.00019985,2]
[357495511,1744089040958,-500.0,0.00019985,2]
[357495512,1744089040968,-500.0,0.00019985,2]
[357495513,1744089040978,-500.0,0.00019985,2]
[357495514,1744089040988,-500.0,0.00019985,2]
[357495515,1744089040998,-500.0,0.00019985,2]
[357495516,1744089041008,-542.29657814,0.00019985,2]
[357495517,1744089041019,-500.0,0.00019985,2]
[357495518,1744089041028,-500.0,0.00019985,2]
[357495519,1744089041039,-406.16,0.00019985,2]
[357495520,1744089041048,-500.0,0.00019985,2]
[357495521,1744089041058,-500.0,0.00019985,2]
[357495522,1744089041068,-500.0,0.00019985,2]
[357495523,1744089041077,-510.58454125,0.00019985,2]
[357495524,1744089041087,-1599.58,0.00019985,2]
[357495525,1744089041096,-503.8156908,0.00019985,2]
[357495526,1744089041106,-500.0,0.00019985,2]
[357495527,1744089041116,-500.0,0.00019985,2]
[357495528,1744089041126,-790.4,0.00019985,2]
[357495529,1744089041135,-500.0,0.00019985,2]
[357495530,1744089041145,-890.44,0.00019985,2]
[357495531,1744089041155,-534.21328435,0.00019985,2]
[357495532,1744089041164,-500.53195783,0.00019985,2]
[357495533,1744089041175,-807.26,0.00019985,2]
[357495534,1744089041184,-604.19183959,0.00019985,2]
[357495535,1744089041194,-502.44840493,0.00019985,2]
[357495536,1744089041204,-500.0,0.00019985,2]
[357495537,1744089041213,-500.0,0.00019985,2]
[357495538,1744089041222,-504.32537022,0.00019985,2]
[357495539,1744089041231,-500.0,0.00019985,2]
[357495540,1744089041240,-500.66225014,0.00019985,2]
[357495541,1744089041250,-500.0,0.00019985,2]
[357495542,1744089041260,-500.0,0.00019985,2]
[357495543,1744089041269,-502.81237751,0.00019985,2]
[357495544,1744089041279,-506.73173347,0.00019985,2]
[357495545,1744089041288,-500.87049879,0.00019985,2]
[357495546,1744089041298,-500.0,0.00019985,2]
[357495547,1744089041307,-505.22098808,0.00019985,2]
[357495548,1744089041317,-500.0,0.00019985,2]
[357495549,1744089041327,-500.0,0.00019985,2]
[357495550,1744089041337,-549.57436671,0.00019985,2]
[357495551,1744089041347,-506.67137902,0.00019985,2]
[357495552,1744089041357,-500.0,0.00019985,2]
[357495553,1744089041366,-500.0,0.00019985,2]
[357495554,1744089041376,-504.87462107,0.00019985,2]
[357495555,1744089041386,-500.0,0.00019985,2]
[357495556,1744089041395,-505.16196087,0.00019985,2]
[357495557,1744089041405,-500.0,0.00019985,2]
[357495558,1744089041414,-500.0,0.00019985,2]
[357495559,1744089041424,-5903.44,0.00019985,2]
[357495560,1744089041439,-388.18659202,0.00019985,2]
[357495561,1744089041449,-509.86284289,0.00019985,2]
[357495562,1744089041459,-511.31835319,0.00019985,2]
[357495563,1744089041470,-511.14737222,0.00019985,2]
[357495564,1744089041480,-631.24,0.00019985,2]
[357495565,1744089041489,-507.59354595,0.00019985,2]
[357495566,1744089041499,-500.0,0.00019985,2]
[357495567,1744089041510,-588.4,0.00019985,2]
[357495568,1744089041519,-515.12684024,0.00019985,2]
[357495569,1744089041529,-500.60472113,0.00019985,2]
[357495570,1744089041539,-500.0,0.00019985,2]
[357495571,1744089041548,-500.0,0.00019986,2]
[357495572,1744089041558,-1110.71,0.00019986,2]
[357495573,1744089041568,-500.0,0.00019986,2]
[357495574,1744089041577,-500.0,0.00019986,2]
[357495575,1744089041587,-500.0,0.00019986,2]
[357495576,1744089041597,-500.0,0.00019986,2]
[357495577,1744089041607,-504.31176058,0.00019986,2]
[357495578,1744089041617,-500.0,0.00019986,2]
[357495579,1744089041626,-500.0,0.00019986,2]
[357495580,1744089041636,-500.0,0.00019986,2]
[357495581,1744089041646,-500.0,0.00019986,2]
[357495582,1744089041656,-922.18,0.00019986,2]
[357495583,1744089041666,-500.0,0.00019986,2]
[357495584,1744089041675,-500.0,0.00019986,2]
[357495585,1744089041685,-500.0,0.00019986,2]
[357495586,1744089041695,-500.0,0.00019986,2]
[357495587,1744089041705,-755.95,0.00019986,2]
[357495588,1744089041715,-718.24,0.00019986,2]
[357495589,1744089041724,-500.0,0.00019986,2]
[357495590,1744089041734,-500.0,0.00019986,2]
[357495591,1744089041744,-500.0,0.00019986,2]
[357495592,1744089041754,-858.2,0.00019986,2]
[357495593,1744089041763,-870.52,0.00019986,2]
[357495594,1744089041773,-500.0,0.00019986,2]
[357495595,1744089041783,-500.0,0.00019986,2]
[357495596,1744089041793,-500.0,0.00019986,2]
[357495597,1744089041802,-500.0,0.00019986,2]
[357495598,1744089041812,-500.0,0.00019986,2]
[357495599,1744089041822,-500.0,0.00019986,2]